[Event "44th Chess Olympiad Open 2022"]
[Site "Chennai"]
[Date "2022.08.05"]
[Round "7.77"]
[White "Fancy, Stuart"]
[Black "Namale, Ben Nguku"]
[Result "0-1"]
[WhiteElo "1984"]
[BlackElo "1962"]
[Annotator "NA RC"]
[PlyCount "56"]
[EventDate "2022.??.??"]
[TimeControl "60"]

1. e4 {[%emt 0:00:15]} c6 {[%emt 0:00:09]} 2. d4 {[%emt 0:00:09]} d5 {[%emt 0:
00:00]} 3. Nc3 {[%emt 0:00:07]} e6 {[%emt 0:00:59]} 4. Nf3 {[%emt 0:00:24]} Nf6
{[%emt 0:01:25]} 5. exd5 {[%emt 0:01:07]} exd5 {[%emt 0:00:24]} 6. Bd3 {
[%emt 0:00:12]} Bg4 {[%emt 0:02:12]} 7. O-O {[%emt 0:00:28]} Be7 {[%emt 0:00:
00]} 8. h3 {[%emt 0:03:05]} Bh5 {[%emt 0:00:29]} 9. Bf4 {[%emt 0:02:03]} O-O {
[%emt 0:01:28]} 10. Re1 {[%emt 0:01:20]} Nbd7 {[%emt 0:02:49]} 11. g4 {[%emt 0:
00:00]} Bg6 {[%emt 0:00:00]} 12. Bxg6 {[%emt 0:00:19]} hxg6 {[%emt 0:00:00]}
13. Ne5 {[%emt 0:01:33]} Nxe5 {[%emt 0:07:34]} 14. dxe5 {[%emt 0:00:24]} Nh7 {
[%emt 0:00:29]} 15. Qd3 {[%emt 0:01:45]} Ng5 {[%emt 0:04:32]} 16. Bxg5 {
[%emt 0:05:25]} Bxg5 {[%emt 0:00:21]} 17. Rad1 {[%emt 0:03:04]} Qe7 {[%emt 0:
00:00]} 18. Re2 {[%emt 0:04:20]} Qe6 {[%emt 0:05:48]} 19. Qg3 {[%emt 0:01:30]}
Bd8 {[%emt 0:01:04]} 20. f4 {[%emt 0:01:53]} Re8 {[%emt 0:01:07]} 21. Rf1 {
[%emt 0:02:14]} Bb6+ {[%emt 0:09:48]} 22. Kh1 {[%emt 0:03:46]} d4 {[%emt 0:00:
00]} 23. Ne4 {[%emt 0:02:50]} Qxa2 {[%emt 0:04:04]} 24. Nd6 {[%emt 0:08:41]}
Qd5+ {[%emt 0:01:03]} 25. Kh2 {[%emt 0:00:23]} Re7 {[%emt 0:01:47]} 26. c4 {
[%emt 0:00:37]} dxc3 {[%emt 0:03:12]} 27. bxc3 {[%emt 0:00:43]} Bc7 {[%emt 0:
00:00]} 28. Nxb7 {[%emt 0:03:21]} Qb5 {[%emt 0:00:29]} 0-1

[Event "44th Chess Olympiad Open 2022"]
[Site "Chennai"]
[Date "2022.08.05"]
[Round "7.77"]
[White "Jones, Rupert"]
[Black "Njoroge, Martin"]
[Result "0-1"]
[WhiteElo "1766"]
[BlackElo "1973"]
[Annotator "NA RC"]
[PlyCount "88"]
[EventDate "2022.??.??"]
[TimeControl "60"]

1. e4 {[%emt 0:00:06]} c5 {[%emt 0:03:54]} 2. Nc3 {[%emt 0:00:31]} a6 {[%emt 0:
00:00]} 3. g3 {[%emt 0:01:38]} b5 {[%emt 0:01:34]} 4. Bg2 {[%emt 0:00:16]} Bb7
{[%emt 0:00:07]} 5. d3 {[%emt 0:00:57]} Nf6 {[%emt 0:01:29]} 6. Be3 {[%emt 0:
00:00]} d6 {[%emt 0:00:31]} 7. Nh3 {[%emt 0:05:46]} e5 {[%emt 0:08:26]} 8. O-O
{[%emt 0:03:18]} Be7 {[%emt 0:02:23]} 9. f4 {[%emt 0:10:53]} O-O {[%emt 0:00:
00]} 10. Nf2 {[%emt 0:13:33]} Qc7 {[%emt 0:07:30]} 11. f5 {[%emt 0:03:15]} b4 {
[%emt 0:03:13]} 12. Ne2 {[%emt 0:01:05]} d5 {[%emt 0:00:30]} 13. g4 {[%emt 0:
00:00]} dxe4 {[%emt 0:05:00]} 14. dxe4 {[%emt 0:00:10]} Rd8 {[%emt 0:02:17]}
15. Qc1 {[%emt 0:00:07]} Ne8 {[%emt 0:04:57]} 16. c3 {[%emt 0:02:27]} Nc6 {
[%emt 0:00:37]} 17. Qc2 {[%emt 0:07:10]} bxc3 {[%emt 0:04:47]} 18. bxc3 {
[%emt 0:02:54]} Na5 {[%emt 0:00:40]} 19. Rad1 {[%emt 0:00:16]} Nc4 {[%emt 0:00:
00]} 20. Bc1 {[%emt 0:00:03]} h6 {[%emt 0:01:14]} 21. Qb3 {[%emt 0:01:21]} Ned6
{[%emt 0:00:45]} 22. Rd3 {[%emt 0:02:45]} Rab8 {[%emt 0:00:49]} 23. Qc2 {
[%emt 0:00:21]} Bh4 {[%emt 0:09:26]} 24. Rh3 {[%emt 0:07:53]} Qe7 {[%emt 0:00:
00]} 25. Ng3 {[%emt 0:04:01]} Bg5 {[%emt 0:05:31]} 26. Nh5 {[%emt 0:05:54]} Ne8
{[%emt 0:01:57]} 27. Nd3 {[%emt 0:04:10]} Nf6 {[%emt 0:02:54]} 28. Nxf6+ {
[%emt 0:00:22]} Bxf6 {[%emt 0:06:09]} 29. Qa4 {[%emt 0:05:32]} Nb6 {[%emt 0:00:
00]} 30. Qc2 {[%emt 0:00:48]} c4 {[%emt 0:01:32]} 31. Nf2 {[%emt 0:01:18]} Bc6
{[%emt 0:02:42]} 32. Be3 {[%emt 0:03:12]} Na4 {[%emt 0:01:13]} 33. Bc1 {
[%emt 0:02:02]} Bg5 {[%emt 0:01:24]} 34. Nd1 {[%emt 0:02:46]} Bxc1 {[%emt 0:00:
00]} 35. Qxc1 {[%emt 0:00:01]} Qc5+ {[%emt 0:00:41]} 36. Kh1 {[%emt 0:00:34]}
Rd3 {[%emt 0:00:30]} 37. Rxd3 {[%emt 0:01:42]} cxd3 {[%emt 0:00:17]} 38. Qd2 {
[%emt 0:01:50]} Qc4 {[%emt 0:02:07]} 39. Re1 {[%emt 0:00:18]} Rb1 {[%emt 0:00:
00]} 40. Bf3 {[%emt 0:02:00]} Nc5 {[%emt 0:01:35]} 41. Qg2 {[%emt 0:12:40]}
Bxe4 {[%emt 0:04:11]} 42. Bxe4 {[%emt 0:04:14]} Nxe4 {[%emt 0:00:54]} 43. Qxe4
{[%emt 0:00:11]} Qxe4+ {[%emt 0:00:22]} 44. Rxe4 {[%emt 0:01:20]} Rxd1+ {
[%emt 0:00:11]} 0-1

[Event "44th Chess Olympiad Open 2022"]
[Site "Chennai"]
[Date "2022.08.05"]
[Round "7.78"]
[White "De Gondo, Simplice Armel"]
[Black "Shaw, Clifford"]
[Result "1/2-1/2"]
[WhiteElo "2135"]
[BlackElo "1615"]
[Annotator "NA RC"]
[PlyCount "113"]
[EventDate "2022.??.??"]
[TimeControl "60"]

1. e4 {[%emt 0:00:09]} e6 {[%emt 0:00:05]} 2. d4 {[%emt 0:00:11]} d5 {[%emt 0:
00:00]} 3. e5 {[%emt 0:00:02]} c5 {[%emt 0:00:08]} 4. Qg4 {[%emt 0:01:42]} f5 {
[%emt 0:00:31]} 5. Qg3 {[%emt 0:00:08]} Nc6 {[%emt 0:00:18]} 6. Nf3 {[%emt 0:
00:00]} cxd4 {[%emt 0:03:55]} 7. Bd3 {[%emt 0:00:02]} Bd7 {[%emt 0:02:45]} 8.
a3 {[%emt 0:00:29]} Qa5+ {[%emt 0:01:08]} 9. Nbd2 {[%emt 0:01:05]} O-O-O {
[%emt 0:03:03]} 10. O-O {[%emt 0:00:06]} h6 {[%emt 0:01:22]} 11. b4 {[%emt 0:
00:00]} Qc7 {[%emt 0:04:11]} 12. b5 {[%emt 0:01:32]} Na5 {[%emt 0:02:10]} 13.
h4 {[%emt 0:01:57]} g5 {[%emt 0:13:28]} 14. hxg5 {[%emt 0:00:30]} hxg5 {
[%emt 0:00:17]} 15. Nxg5 {[%emt 0:00:00]} Nh6 {[%emt 0:00:35]} 16. Ndf3 {
[%emt 0:00:03]} Be7 {[%emt 0:01:36]} 17. Qf4 {[%emt 0:12:43]} Rdg8 {[%emt 0:00:
00]} 18. Qxd4 {[%emt 0:00:34]} Bc5 {[%emt 0:01:08]} 19. Qf4 {[%emt 0:00:04]}
Nc4 {[%emt 0:07:34]} 20. Bxc4 {[%emt 0:01:30]} dxc4 {[%emt 0:00:04]} 21. Be3 {
[%emt 0:00:26]} Rg6 {[%emt 0:01:58]} 22. Bxc5 {[%emt 0:15:53]} Qxc5 {[%emt 0:
00:00]} 23. Nh4 {[%emt 0:00:12]} Rg7 {[%emt 0:01:17]} 24. a4 {[%emt 0:00:25]}
Ng4 {[%emt 0:06:48]} 25. Ngf3 {[%emt 0:01:11]} a6 {[%emt 0:04:54]} 26. c3 {
[%emt 0:02:42]} axb5 {[%emt 0:01:47]} 27. axb5 {[%emt 0:00:02]} Kc7 {[%emt 0:
00:00]} 28. Nxf5 {[%emt 0:03:25]} exf5 {[%emt 0:12:04]} 29. e6+ {[%emt 0:00:09]
} Kb6 {[%emt 0:00:10]} 30. exd7 {[%emt 0:05:58]} Rxd7 {[%emt 0:03:37]} 31. g3 {
[%emt 0:04:46]} Rd3 {[%emt 0:12:11]} 32. Rae1 {[%emt 0:05:17]} Qd5 {[%emt 0:00:
00]} 33. Re7 {[%emt 0:05:48]} Rc8 {[%emt 0:09:13]} 34. Nd4 {[%emt 0:02:19]}
Rxc3 {[%emt 0:00:38]} 35. Re6+ {[%emt 0:07:33]} Kc5 {[%emt 0:00:40]} 36. Qxf5 {
[%emt 0:00:41]} Qxf5 {[%emt 0:01:16]} 37. Nxf5 {[%emt 0:00:03]} Rf8 {[%emt 0:
00:00]} 38. Nd6 {[%emt 0:01:29]} Rcf3 {[%emt 0:02:09]} 39. Rg6 {[%emt 0:00:15]}
Nxf2 {[%emt 0:00:31]} 40. Rxf2 {[%emt 0:00:03]} Rxf2 {[%emt 0:00:15]} 41. Ne4+
{[%emt 0:30:08]} Kxb5 {[%emt 0:30:14]} 42. Nxf2 {[%emt 0:00:53]} Rc8 {[%emt 0:
00:00]} 43. Rg7 {[%emt 0:06:44]} b6 {[%emt 0:00:00]} 44. Ne4 {[%emt 0:00:00]}
Kb4 {[%emt 0:00:00]} 45. Rg4 {[%emt 0:01:45]} b5 {[%emt 0:00:00]} 46. Kf2 {
[%emt 0:00:35]} Kb3 {[%emt 0:00:00]} 47. Nd6 {[%emt 0:04:41]} Rc5 {[%emt 0:00:
00]} 48. Ne4 {[%emt 0:03:37]} Rc6 {[%emt 0:00:00]} 49. Rg5 {[%emt 0:00:54]} b4
{[%emt 0:00:00]} 50. Ke2 {[%emt 0:03:09]} c3 {[%emt 0:00:00]} 51. Rc5 {[%emt 0:
00:00]} Ra6 {[%emt 0:04:21]} 52. Kd3 {[%emt 0:00:23]} Ra1 {[%emt 0:00:09]} 53.
Nxc3 {[%emt 0:00:28]} bxc3 {[%emt 0:00:35]} 54. Rxc3+ {[%emt 0:00:06]} Kb4 {
[%emt 0:00:05]} 55. Rc4+ {[%emt 0:01:35]} Kb5 {[%emt 0:00:15]} 56. Re4 {
[%emt 0:00:08]} Ra3+ {[%emt 0:00:24]} 57. Kd4 {[%emt 0:01:28]} 1/2-1/2

[Event "44th Chess Olympiad Open 2022"]
[Site "Chennai"]
[Date "2022.08.05"]
[Round "7.78"]
[White "Young, Christopher"]
[Black "Manan, Yoboue Hermann"]
[Result "1-0"]
[WhiteElo "1990"]
[BlackElo "2066"]
[Annotator "NA COMBH RC"]
[PlyCount "91"]
[EventDate "2022.??.??"]
[TimeControl "60"]

1. d4 {[%emt 0:00:03]} d5 {[%emt 0:00:22]} 2. c4 {[%emt 0:00:04]} e6 {[%emt 0:
00:00]} 3. Nf3 {[%emt 0:00:41]} Nf6 {[%emt 0:00:45]} 4. Nc3 {[%emt 0:00:29]}
Be7 {[%emt 0:00:35]} 5. Bf4 {[%emt 0:01:12]} O-O {[%emt 0:01:08]} 6. e3 {
[%emt 0:00:05]} c6 {[%emt 0:02:55]} 7. Rc1 {[%emt 0:02:37]} Nbd7 {[%emt 0:00:
00]} 8. Bd3 {[%emt 0:03:43]} Nh5 {[%emt 0:04:50]} 9. Bg3 {[%emt 0:03:23]} g6 {
[%emt 0:00:59]} 10. e4 {[%emt 0:10:33]} dxe4 {[%emt 0:02:02]} 11. Nxe4 {
[%emt 0:00:44]} f5 {[%emt 0:00:43]} 12. Nc3 {[%emt 0:10:16]} f4 {[%emt 0:01:49]
} 13. Qe2 {[%emt 0:00:49]} Nb6 {[%emt 0:05:43]} 14. Rd1 {[%emt 0:18:55]} Bd7 {
[%emt 0:04:41]} 15. Ne5 {[%emt 0:20:26]} Qe8 {[%emt 0:02:21]} 16. Qg4 {[%emt 0:
00:00]} fxg3 {[%emt 0:00:57]} 17. hxg3 {[%emt 0:04:54]} Rf5 {[%emt 0:02:49]}
18. Qh3 {[%emt 0:13:13]} Rxe5+ {[%emt 0:19:13]} 19. dxe5 {[%emt 0:00:01]} Qf7 {
[%emt 0:00:27]} 20. a3 {[%emt 0:04:08]} c5 {[%emt 0:02:55]} 21. Ne2 {[%emt 0:
00:00]} Rf8 {[%emt 0:00:42]} 22. f4 {[%emt 0:00:38]} Qg7 {[%emt 0:00:53]} 23.
Rf1 {[%emt 0:00:21]} Qf7 {[%emt 0:09:22]} 24. Rh1 {[%emt 0:00:38]} Qg7 {
[%emt 0:01:14]} 25. Rf1 {[%emt 0:00:07]} Rf7 {[%emt 0:05:57]} 26. b3 {[%emt 0:
00:00]} Qf8 {[%emt 0:00:33]} 27. Rh1 {[%emt 0:00:19]} Qb8 {[%emt 0:07:58]} 28.
Kd2 {[%emt 0:00:42]} Na8 {[%emt 0:04:29]} 29. Qg4 {[%emt 0:00:40]} Rg7 {
[%emt 0:00:49]} 30. Qh3 {[%emt 0:00:38]} a6 {[%emt 0:01:20]} 31. g4 {[%emt 0:
00:00]} Nxf4 {[%emt 0:00:55]} 32. Nxf4 {[%emt 0:00:02]} Qxe5 {[%emt 0:00:19]}
33. Nxg6 {[%emt 0:00:19]} hxg6 {[%emt 0:02:40]} 34. Qh8+ {[%emt 0:00:28]} Kf7 {
[%emt 0:00:17]} 35. Rhf1+ {[%emt 0:00:47]} Bf6 {[%emt 0:00:36]} 36. Rxf6+ {
[%emt 0:00:51]} Kxf6 {[%emt 0:00:13]} 37. Qd8+ {[%emt 0:00:30]} Re7 {[%emt 0:
00:00]} 38. Rf1+ {[%emt 0:00:05]} Kg5 {[%emt 0:00:20]} 39. Qxe7+ {[%emt 0:00:
00]} Kxg4 {[%emt 0:00:35]} 40. Qxd7 {[%emt 0:01:14]} Nb6 {[%emt 0:01:03]} 41.
Be2+ {[%emt 0:04:08]} Kg3 {[%emt 0:02:13]} 42. Qd3+ {[%emt 0:00:17]} Kh4 {
[%emt 0:00:16]} 43. Qh3+ {[%emt 0:02:28]} Kg5 {[%emt 0:00:14]} 44. Qg4+ {
[%emt 0:00:22]} Kh6 {[%emt 0:00:48]} 45. Qh4+ {[%emt 0:00:11]} Kg7 {[%emt 0:00:
00] #5} 46. Qe7+ {[%emt 0:00:06]} 1-0

[Event "44th Chess Olympiad Open 2022"]
[Site "Chennai"]
[Date "2022.08.05"]
[Round "7.78"]
[White "Mambe, Lobognon Anderson O"]
[Black "Tracey, Shaun M"]
[Result "1-0"]
[WhiteElo "1921"]
[BlackElo "1650"]
[Annotator "NA RC"]
[PlyCount "43"]
[EventDate "2022.??.??"]
[TimeControl "60"]

1. d4 {[%emt 0:00:06]} e6 {[%emt 0:00:06]} 2. Nf3 {[%emt 0:00:29]} f5 {[%emt 0:
00:00]} 3. c4 {[%emt 0:00:22]} Nf6 {[%emt 0:00:37]} 4. Nc3 {[%emt 0:00:48]} d5
{[%emt 0:00:48]} 5. Bg5 {[%emt 0:00:54]} Be7 {[%emt 0:03:57]} 6. e3 {[%emt 0:
00:00]} c6 {[%emt 0:02:11]} 7. Qc2 {[%emt 0:01:55]} Nbd7 {[%emt 0:01:46]} 8. h3
{[%emt 0:00:35]} b6 {[%emt 0:09:40]} 9. cxd5 {[%emt 0:03:09]} Nxd5 {[%emt 0:00:
00]} 10. Nxd5 {[%emt 0:03:36]} cxd5 {[%emt 0:03:11]} 11. Qc6 {[%emt 0:04:08]}
Rb8 {[%emt 0:06:43]} 12. Bf4 {[%emt 0:02:12]} Bb4+ {[%emt 0:10:08]} 13. Kd1 {
[%emt 0:01:23]} Ke7 {[%emt 0:03:16]} 14. Ng5 {[%emt 0:06:02]} Qg8 {[%emt 0:00:
00]} 15. Bxb8 {[%emt 0:02:28]} Nxb8 {[%emt 0:04:55]} 16. Qc7+ {[%emt 0:06:51]}
Nd7 {[%emt 0:13:26]} 17. Qxa7 {[%emt 0:03:48]} Kf6 {[%emt 0:02:41]} 18. h4 {
[%emt 0:00:39]} Qf8 {[%emt 0:01:41]} 19. Bb5 {[%emt 0:01:13]} Qd8 {[%emt 0:00:
00]} 20. Rc1 {[%emt 0:01:16]} Bd6 {[%emt 0:00:15]} 21. Rc6 {[%emt 0:01:12]} Nb8
{[%emt 0:01:08]} 22. Qf7# {[%emt 0:00:48]} 1-0

[Event "44th Chess Olympiad Open 2022"]
[Site "Chennai"]
[Date "2022.08.05"]
[Round "7.78"]
[White "Powell, Malcolm"]
[Black "Amako Marc Arnold"]
[Result "0-1"]
[WhiteElo "1218"]
[BlackElo "1547"]
[Annotator "NA RC"]
[PlyCount "146"]
[EventDate "2022.??.??"]
[TimeControl "60"]

1. Nf3 {[%emt 0:00:03]} d5 {[%emt 0:00:11]} 2. c4 {[%emt 0:00:08]} e6 {[%emt 0:
00:00]} 3. g3 {[%emt 0:00:08]} Nf6 {[%emt 0:00:09]} 4. Bg2 {[%emt 0:00:04]} Be7
{[%emt 0:00:10]} 5. O-O {[%emt 0:00:17]} O-O {[%emt 0:00:07]} 6. b3 {[%emt 0:
00:00]} d4 {[%emt 0:01:58]} 7. d3 {[%emt 0:00:58]} c5 {[%emt 0:00:33]} 8. e3 {
[%emt 0:01:00]} Nc6 {[%emt 0:00:14]} 9. Bb2 {[%emt 0:03:23]} e5 {[%emt 0:00:27]
} 10. Re1 {[%emt 0:02:55]} Bd6 {[%emt 0:01:05]} 11. a3 {[%emt 0:04:36]} a5 {
[%emt 0:00:20]} 12. Nbd2 {[%emt 0:00:10]} Be6 {[%emt 0:00:21]} 13. Ng5 {
[%emt 0:12:29]} Bg4 {[%emt 0:01:11]} 14. Bf3 {[%emt 0:05:46]} dxe3 {[%emt 0:00:
00]} 15. Rxe3 {[%emt 0:10:43]} Bxf3 {[%emt 0:01:00]} 16. Qxf3 {[%emt 0:04:55]}
Qd7 {[%emt 0:05:43]} 17. Nge4 {[%emt 0:11:12]} Ng4 {[%emt 0:00:47]} 18. Re2 {
[%emt 0:00:27]} f5 {[%emt 0:00:40]} 19. Nxd6 {[%emt 0:08:31]} Qxd6 {[%emt 0:00:
00]} 20. Qd5+ {[%emt 0:00:05]} Qxd5 {[%emt 0:00:09]} 21. cxd5 {[%emt 0:00:05]}
Ne7 {[%emt 0:00:25]} 22. h3 {[%emt 0:03:12]} Nf6 {[%emt 0:00:23]} 23. Rxe5 {
[%emt 0:00:16]} Nfxd5 {[%emt 0:00:18]} 24. Rae1 {[%emt 0:07:52]} Kf7 {[%emt 0:
00:00]} 25. Nc4 {[%emt 0:00:51]} Ra6 {[%emt 0:00:14]} 26. Ne3 {[%emt 0:05:15]}
Nf6 {[%emt 0:05:54]} 27. Rxc5 {[%emt 0:01:00]} f4 {[%emt 0:00:18]} 28. gxf4 {
[%emt 0:01:54]} Ng6 {[%emt 0:00:18]} 29. Rf5 {[%emt 0:01:36]} Nh4 {[%emt 0:00:
00]} 30. Rb5 {[%emt 0:00:30]} Nf3+ {[%emt 0:00:42]} 31. Kf1 {[%emt 0:00:13]}
Nxe1 {[%emt 0:00:28]} 32. Kxe1 {[%emt 0:00:04]} b6 {[%emt 0:01:26]} 33. Nc4 {
[%emt 0:01:47]} Rd8 {[%emt 0:03:27]} 34. Ke2 {[%emt 0:02:55]} Rd5 {[%emt 0:00:
00]} 35. Rxb6 {[%emt 0:02:17]} Rxb6 {[%emt 0:00:18]} 36. Nxb6 {[%emt 0:00:07]}
Rb5 {[%emt 0:00:10]} 37. Nc4 {[%emt 0:03:04]} Rxb3 {[%emt 0:00:23]} 38. Bxf6 {
[%emt 0:00:06]} Kxf6 {[%emt 0:00:45]} 39. Nxa5 {[%emt 0:00:34]} Rxa3 {[%emt 0:
00:00]} 40. Nc4 {[%emt 0:00:16]} Rb3 {[%emt 0:01:29]} 41. Ke3 {[%emt 0:30:16]}
Rb1 {[%emt 0:31:22]} 42. Kf3 {[%emt 0:00:00]} Rd1 {[%emt 0:00:00]} 43. Ne5 {
[%emt 0:00:00]} Kf5 {[%emt 0:00:00]} 44. h4 {[%emt 0:00:00]} Rh1 {[%emt 0:00:
00]} 45. Kg3 {[%emt 0:00:00]} h5 {[%emt 0:00:00]} 46. Nf3 {[%emt 0:00:00]} g6 {
[%emt 0:00:00]} 47. Nd4+ {[%emt 0:00:00]} Kf6 {[%emt 0:00:00]} 48. Nf3 {
[%emt 0:00:00]} Ke6 {[%emt 0:00:00]} 49. Ne5 {[%emt 0:00:00]} Kd6 {[%emt 0:00:
00]} 50. Nf3 {[%emt 0:00:00]} Ra1 {[%emt 0:00:00]} 51. Ne5 {[%emt 0:00:00]} Kd5
{[%emt 0:00:00]} 52. Kf3 {[%emt 0:00:00]} Rg1 {[%emt 0:00:00]} 53. Ke3 {
[%emt 0:00:58]} Ke6 {[%emt 0:00:00]} 54. Nf3 {[%emt 0:01:01]} Rg2 {[%emt 0:00:
00]} 55. Ng5+ {[%emt 0:00:44]} Kf5 {[%emt 0:00:00]} 56. Kf3 {[%emt 0:00:20]}
Rg4 {[%emt 0:00:00]} 57. Nh3 {[%emt 0:02:13]} Rxh4 {[%emt 0:00:00]} 58. Kg3 {
[%emt 0:00:04]} Rg4+ {[%emt 0:00:00]} 59. Kh2 {[%emt 0:00:38]} h4 {[%emt 0:00:
00]} 60. Kh1 {[%emt 0:02:31]} Ke6 {[%emt 0:02:17]} 61. Kh2 {[%emt 0:00:34]} Kd5
{[%emt 0:02:15]} 62. f3 {[%emt 0:05:02]} Rg3 {[%emt 0:00:12]} 63. Ng1 {[%emt 0:
00:00]} Ke6 {[%emt 0:05:41]} 64. Kh1 {[%emt 0:00:07]} Kf5 {[%emt 0:01:07]} 65.
Kh2 {[%emt 0:00:04]} Ke6 {[%emt 0:12:11]} 66. Kh1 {[%emt 0:00:07]} Kf6 {
[%emt 0:00:13]} 67. Kh2 {[%emt 0:00:04]} Kf5 {[%emt 0:00:07]} 68. Kh1 {[%emt 0:
00:00]} h3 {[%emt 0:00:03]} 69. Kh2 {[%emt 0:00:21]} Rg2+ {[%emt 0:00:07]} 70.
Kh1 {[%emt 0:00:33]} Kxf4 {[%emt 0:00:09]} 71. d4 {[%emt 0:03:47]} Kg3 {
[%emt 0:00:24]} 72. Nxh3 {[%emt 0:01:57]} Kxh3 {[%emt 0:00:08]} 73. d5 {
[%emt 0:00:11]} Kg3 {[%emt 0:00:05]} 0-1

[Event "44th Chess Olympiad Open 2022"]
[Site "Chennai"]
[Date "2022.08.05"]
[Round "7.79"]
[White "Arnold Smith"]
[Black "Mutabazi Hugues"]
[Result "0-1"]
[WhiteElo "1931"]
[BlackElo "1666"]
[Annotator "NA RC"]
[PlyCount "130"]
[EventDate "2022.??.??"]
[TimeControl "60"]

1. e4 {[%emt 0:00:10]} e5 {[%emt 0:00:05]} 2. Nf3 {[%emt 0:00:14]} Nf6 {
[%emt 0:00:06]} 3. d4 {[%emt 0:02:49]} Nxe4 {[%emt 0:01:25]} 4. Bd3 {[%emt 0:
00:00]} d5 {[%emt 0:02:23]} 5. Nxe5 {[%emt 0:02:03]} Nf6 {[%emt 0:06:29]} 6.
O-O {[%emt 0:03:23]} Be7 {[%emt 0:00:43]} 7. Re1 {[%emt 0:02:29]} O-O {[%emt 0:
00:00]} 8. Nd2 {[%emt 0:01:03]} Nbd7 {[%emt 0:02:50]} 9. Ndf3 {[%emt 0:02:39]}
h6 {[%emt 0:00:46]} 10. h3 {[%emt 0:00:15]} Re8 {[%emt 0:01:05]} 11. c4 {
[%emt 0:02:25]} c6 {[%emt 0:09:50]} 12. a3 {[%emt 0:02:38]} Nxe5 {[%emt 0:00:
00]} 13. dxe5 {[%emt 0:01:30]} Nd7 {[%emt 0:00:24]} 14. cxd5 {[%emt 0:01:38]}
cxd5 {[%emt 0:00:18]} 15. Bb5 {[%emt 0:04:55]} a6 {[%emt 0:00:25]} 16. Ba4 {
[%emt 0:01:26]} b5 {[%emt 0:00:19]} 17. Bb3 {[%emt 0:00:38]} Nb6 {[%emt 0:00:
00]} 18. Be3 {[%emt 0:00:35]} Nc4 {[%emt 0:00:14]} 19. Bd4 {[%emt 0:03:46]} Be6
{[%emt 0:02:28]} 20. Qd3 {[%emt 0:04:32]} Rc8 {[%emt 0:08:35]} 21. Rad1 {
[%emt 0:02:12]} Qc7 {[%emt 0:03:54]} 22. Re2 {[%emt 0:02:33]} Red8 {[%emt 0:00:
00]} 23. h4 {[%emt 0:02:14]} Qd7 {[%emt 0:01:25]} 24. Bc2 {[%emt 0:01:39]} g6 {
[%emt 0:00:44]} 25. Qb3 {[%emt 0:00:51]} Kg7 {[%emt 0:03:36]} 26. h5 {[%emt 0:
00:00]} Qe8 {[%emt 0:01:35]} 27. hxg6 {[%emt 0:02:15]} fxg6 {[%emt 0:00:10]}
28. Bd3 {[%emt 0:07:16]} Qf7 {[%emt 0:02:33]} 29. Bxc4 {[%emt 0:00:39]} dxc4 {
[%emt 0:00:25]} 30. Qe3 {[%emt 0:00:09]} Rd7 {[%emt 0:03:03]} 31. Red2 {
[%emt 0:00:21]} Kh7 {[%emt 0:00:30]} 32. Bc3 {[%emt 0:00:46]} Bc5 {[%emt 0:00:
00]} 33. Qe4 {[%emt 0:03:13]} Rxd2 {[%emt 0:04:22]} 34. Rxd2 {[%emt 0:00:29]}
Bf5 {[%emt 0:00:40]} 35. Qh4 {[%emt 0:02:36]} Qe7 {[%emt 0:05:07]} 36. Qg3 {
[%emt 0:04:03]} Rf8 {[%emt 0:08:08]} 37. Nh4 {[%emt 0:10:52]} Bd3 {[%emt 0:00:
00]} 38. Kh2 {[%emt 0:02:27]} Qf7 {[%emt 0:00:17]} 39. Nf3 {[%emt 0:00:40]} g5
{[%emt 0:02:07]} 40. Nd4 {[%emt 0:02:13]} Qa7 {[%emt 0:08:16]} 41. Rxd3 {
[%emt 0:35:35]} Rd8 {[%emt 0:41:34]} 42. Rd1 {[%emt 0:05:09]} Bxd4 {[%emt 0:00:
00]} 43. Qf3 {[%emt 0:00:47]} Bb6 {[%emt 0:00:00]} 44. Qf5+ {[%emt 0:00:00]}
Kg8 {[%emt 0:00:00]} 45. Rd6 {[%emt 0:00:00]} Rxd6 {[%emt 0:00:00]} 46. exd6 {
[%emt 0:00:00]} Qf7 {[%emt 0:00:00]} 47. Qe5 {[%emt 0:00:00]} Qf4+ {[%emt 0:00:
00]} 48. Qxf4 {[%emt 0:00:00]} gxf4 {[%emt 0:00:00]} 49. Be5 {[%emt 0:00:00]}
Kf7 {[%emt 0:00:00]} 50. Bxf4 {[%emt 0:00:00]} Bxf2 {[%emt 0:00:00]} 51. Bxh6 {
[%emt 0:00:00]} Bd4 {[%emt 0:00:00]} 52. Bc1 {[%emt 0:00:00]} Ke6 {[%emt 0:00:
00]} 53. g3 {[%emt 0:00:00]} Kxd6 {[%emt 0:00:00]} 54. Kg2 {[%emt 0:00:00]} Kd5
{[%emt 0:00:51]} 55. Kf3 {[%emt 0:00:11]} Be5 {[%emt 0:00:00]} 56. g4 {[%emt 0:
00:00]} Kd4 {[%emt 0:00:00]} 57. Ke2 {[%emt 0:00:00]} Ke4 {[%emt 0:00:00]} 58.
Kd1 {[%emt 0:00:00]} Kd3 {[%emt 0:00:00]} 59. g5 {[%emt 0:00:00]} a5 {[%emt 0:
00:00]} 60. g6 {[%emt 0:00:00]} Bg7 {[%emt 0:00:00]} 61. Bg5 {[%emt 0:00:00]}
Bxb2 {[%emt 0:00:00]} 62. Bh6 {[%emt 0:00:00]} c3 {[%emt 0:00:00]} 63. Bc1 {
[%emt 0:00:00]} c2+ {[%emt 0:00:00]} 64. Ke1 {[%emt 0:00:00]} Bxc1 {[%emt 0:00:
00]} 65. g7 {[%emt 0:00:00]} Be3 {[%emt 0:00:00]} 0-1

[Event "44th Chess Olympiad Open 2022"]
[Site "Chennai"]
[Date "2022.08.05"]
[Round "7.79"]
[White "Barcon, Harmon"]
[Black "Muheto, Dieudonne"]
[Result "1-0"]
[WhiteElo "1902"]
[BlackElo "1830"]
[Annotator "NA RC"]
[PlyCount "71"]
[EventDate "2022.??.??"]
[TimeControl "60"]

1. e4 {[%emt 0:00:04]} d5 {[%emt 0:00:01]} 2. exd5 {[%emt 0:00:08]} Qxd5 {
[%emt 0:00:07]} 3. Nf3 {[%emt 0:00:17]} Nf6 {[%emt 0:00:23]} 4. Nc3 {[%emt 0:
00:00]} Qd8 {[%emt 0:00:10]} 5. d4 {[%emt 0:00:17]} g6 {[%emt 0:00:28]} 6. Bc4
{[%emt 0:01:11]} Bg7 {[%emt 0:00:35]} 7. h3 {[%emt 0:00:13]} O-O {[%emt 0:00:
00]} 8. O-O {[%emt 0:00:37]} Nbd7 {[%emt 0:00:46]} 9. Be3 {[%emt 0:00:48]} Nb6
{[%emt 0:00:17]} 10. Bb3 {[%emt 0:02:22]} Nfd5 {[%emt 0:01:19]} 11. Nxd5 {
[%emt 0:01:34]} Nxd5 {[%emt 0:00:15]} 12. Bd2 {[%emt 0:00:12]} c6 {[%emt 0:00:
00]} 13. Re1 {[%emt 0:00:36]} a5 {[%emt 0:02:00]} 14. c3 {[%emt 0:00:09]} Bf5 {
[%emt 0:01:35]} 15. Bg5 {[%emt 0:05:24]} Re8 {[%emt 0:10:13]} 16. Nh4 {[%emt 0:
00:00]} Be6 {[%emt 0:00:08]} 17. Qd2 {[%emt 0:01:09]} a4 {[%emt 0:01:29]} 18.
Bc2 {[%emt 0:00:08]} Qd7 {[%emt 0:00:12]} 19. Rad1 {[%emt 0:02:39]} Bxh3 {
[%emt 0:00:44]} 20. gxh3 {[%emt 0:00:37]} Qxh3 {[%emt 0:00:12]} 21. Qd3 {
[%emt 0:01:29]} Qg4+ {[%emt 0:01:52]} 22. Qg3 {[%emt 0:00:03]} Qh5 {[%emt 0:00:
00]} 23. Be4 {[%emt 0:01:03]} f6 {[%emt 0:00:14]} 24. Bc1 {[%emt 0:01:32]} g5 {
[%emt 0:00:34]} 25. Nf5 {[%emt 0:03:20]} Ra5 {[%emt 0:08:53]} 26. Nxg7 {
[%emt 0:00:50]} Kxg7 {[%emt 0:00:16]} 27. Kg2 {[%emt 0:00:19]} h6 {[%emt 0:00:
00]} 28. Rh1 {[%emt 0:00:09]} Qf7 {[%emt 0:00:14]} 29. c4 {[%emt 0:05:24]} Nb6
{[%emt 0:09:38]} 30. Rxh6 {[%emt 0:10:36]} Qe6 {[%emt 0:13:26]} 31. Rh7+ {
[%emt 0:05:14]} Kg8 {[%emt 0:00:37]} 32. Bg6 {[%emt 0:00:25]} Rf8 {[%emt 0:00:
00]} 33. Rdh1 {[%emt 0:07:35]} Nd7 {[%emt 0:04:49]} 34. Bd3 {[%emt 0:00:44]} b6
{[%emt 0:06:10]} 35. R1h6 {[%emt 0:01:44]} Rf5 {[%emt 0:19:45]} 36. Qh3 {
[%emt 0:03:12]} 1-0